[Event "January 2 Early 2024"]
[Site "https://www.chess.com"]
[Date "2024.01.02"]
[Round "10"]
[White "SkinnyPuppy8"]
[Black "Leisch, Lukas"]
[Result "1-0"]
[Board "123"]
[TimeControl "180+1"]
[BlackFideId "1632094"]
[WhiteElo "2300"]
[BlackElo "2472"]
[BlackTeam "AUT"]
[WhiteClock "0:00:03"]
[BlackClock "0:00:00"]

1. e4 {[%clk 0:03:00]}  e6 {[%clk 0:02:59]} 2. d3 {[%clk 0:03:00]}  d5 {[%clk 0:02:59]} 3. Nd2 {[%clk 0:03:00]}  Nf6 {[%clk 0:02:59]} 4. Ngf3 {[%clk 0:03:00]}  Nc6 {[%clk 0:03:00]} 5. g3 {[%clk 0:03:00]}  dxe4 {[%clk 0:02:58]} 6. dxe4 {[%clk 0:03:01]}  Bc5 {[%clk 0:02:58]} 7. Bg2 {[%clk 0:03:01]}  e5 {[%clk 0:02:58]} 8. O-O {[%clk 0:03:01]}  O-O {[%clk 0:02:59]} 9. h3 {[%clk 0:02:59]}  Qe7 {[%clk 0:02:57]} 10. c3 {[%clk 0:02:58]}  a5 {[%clk 0:02:56]} 11. Qe2 {[%clk 0:02:54]}  b6 {[%clk 0:02:54]} 12. Rd1 {[%clk 0:02:47]}  Ba6 {[%clk 0:02:54]} 13. Qe1 {[%clk 0:02:47]}  Rfd8 {[%clk 0:02:36]} 14. Nh4 {[%clk 0:02:44]}  Qe6 {[%clk 0:02:29]} 15. Nb3 {[%clk 0:02:37]}  Bf8 {[%clk 0:02:20]} 16. Be3 {[%clk 0:02:26]}  a4 {[%clk 0:02:18]} 17. Nd2 {[%clk 0:02:24]}  Na5 {[%clk 0:02:06]} 18. Kh2 {[%clk 0:02:23]}  Bd3 {[%clk 0:02:03]} 19. Bg5 {[%clk 0:02:17]}  h6 {[%clk 0:01:51]} 20. Bxf6 {[%clk 0:02:15]}  Qxf6 {[%clk 0:01:52]} 21. Nf5 {[%clk 0:01:51]}  Bc5 {[%clk 0:01:34]} 22. Nf1 {[%clk 0:01:43]}  Nc4 {[%clk 0:01:27]} 23. N1e3 {[%clk 0:00:50]}  Nxb2 {[%clk 0:01:25]} 24. Rd2 {[%clk 0:00:46]}  a3 {[%clk 0:01:22]} 25. Qc1 {[%clk 0:00:28]}  c6 {[%clk 0:01:18]} 26. Rxb2 {[%clk 0:00:25]}  axb2 {[%clk 0:01:18]} 27. Qxb2 {[%clk 0:00:26]}  Qe6 {[%clk 0:00:46]} 28. a3 {[%clk 0:00:21]}  b5 {[%clk 0:00:42]} 29. Qc1 {[%clk 0:00:19]}  Bc4 {[%clk 0:00:33]} 30. Ng4 {[%clk 0:00:18]}  Rd3 {[%clk 0:00:23]} 31. Bf1 {[%clk 0:00:16]}  Rd7 {[%clk 0:00:19]} 32. Bxc4 {[%clk 0:00:16]}  bxc4 {[%clk 0:00:20]} 33. a4 {[%clk 0:00:15]}  Rad8 {[%clk 0:00:15]} 34. a5 {[%clk 0:00:14]}  Rd1 {[%clk 0:00:15]} 35. Qxd1 {[%clk 0:00:11]}  Rxd1 {[%clk 0:00:16]} 36. Rxd1 {[%clk 0:00:11]}  h5 {[%clk 0:00:15]} 37. Rd8+ {[%clk 0:00:10]}  Kh7 {[%clk 0:00:16]} 38. Nge3 {[%clk 0:00:09]}  g6 {[%clk 0:00:16]} 39. Nh4 {[%clk 0:00:08]}  Bxe3 {[%clk 0:00:16]} 40. fxe3 {[%clk 0:00:07]}  Qe7 {[%clk 0:00:15]} 41. Ra8 {[%clk 0:00:03]}  Qc5 {[%clk 0:00:15]} 42. Ng2 {[%clk 0:00:03]}  Qa3 {[%clk 0:00:13]} 43. a6 {[%clk 0:00:03]}  Qxc3 {[%clk 0:00:13]} 44. a7 {[%clk 0:00:03]}  Qa1 {[%clk 0:00:10]} 45. h4 {[%clk 0:00:04]}  c3 {[%clk 0:00:10]} 46. Ne1 {[%clk 0:00:04]}  Qa6 {[%clk 0:00:03]} 47. Nc2 {[%clk 0:00:04]}  Qa4 {[%clk 0:00:02]} 48. Kh3 {[%clk 0:00:04]}  Kg7 {[%clk 0:00:02]} 49. Nb4 {[%clk 0:00:03]}  c5 {[%clk 0:00:01]} 50. Nc2 {[%clk 0:00:03]}  Qa5 {[%clk 0:00:01]} 51. Rc8 {[%clk 0:00:02]}  Qa6 {[%clk 0:00:01]} 52. a8=Q {[%clk 0:00:01]}  Qxa8 {[%clk 0:00:02]} 53. Rxa8 {[%clk 0:00:02]}  f5 {[%clk 0:00:02]} 54. Rc8 {[%clk 0:00:02]}  fxe4 {[%clk 0:00:00]} 55. Rxc5 {[%clk 0:00:03]} 1-0

[Event "January 2 Early 2024"]
[Site "https://www.chess.com"]
[Date "2024.01.02"]
[Round "10"]
[White "Kabanov, Nikolai"]
[Black "Rodriguez Avila, Alvaro"]
[Result "1-0"]
[Board "124"]
[TimeControl "180+1"]
[WhiteFideId "4127820"]
[BlackFideId "24570249"]
[WhiteElo "2464"]
[BlackElo "2280"]
[WhiteTeam "RUS"]
[BlackTeam "ESP"]
[WhiteClock "0:00:32"]
[BlackClock "0:00:16"]

1. e4 {[%clk 0:02:59]}  c5 {[%clk 0:02:59]} 2. Nf3 {[%clk 0:02:59]}  d6 {[%clk 0:02:59]} 3. Bb5+ {[%clk 0:02:59]}  Nd7 {[%clk 0:02:58]} 4. O-O {[%clk 0:02:57]}  Nf6 {[%clk 0:02:58]} 5. a4 {[%clk 0:02:55]}  a6 {[%clk 0:02:57]} 6. Bc4 {[%clk 0:02:49]}  g6 {[%clk 0:02:54]} 7. d3 {[%clk 0:02:41]}  Bg7 {[%clk 0:02:54]} 8. Ng5 {[%clk 0:02:40]}  O-O {[%clk 0:02:50]} 9. f4 {[%clk 0:02:39]}  e6 {[%clk 0:02:47]} 10. Nc3 {[%clk 0:02:31]}  b6 {[%clk 0:02:25]} 11. Qe1 {[%clk 0:02:22]}  Bb7 {[%clk 0:02:25]} 12. Bxe6 {[%clk 0:02:10]}  fxe6 {[%clk 0:02:24]} 13. Nxe6 {[%clk 0:02:10]}  Qe7 {[%clk 0:02:24]} 14. Nxf8 {[%clk 0:02:10]}  Rxf8 {[%clk 0:02:25]} 15. Qh4 {[%clk 0:02:06]}  Re8 {[%clk 0:02:14]} 16. f5 {[%clk 0:02:03]}  Nh5 {[%clk 0:02:02]} 17. Bg5 {[%clk 0:01:52]}  Qe5 {[%clk 0:01:58]} 18. fxg6 {[%clk 0:01:43]}  hxg6 {[%clk 0:01:57]} 19. Rf3 {[%clk 0:01:40]}  Rf8 {[%clk 0:01:51]} 20. Raf1 {[%clk 0:01:36]}  Rxf3 {[%clk 0:01:47]} 21. Rxf3 {[%clk 0:01:37]}  d5 {[%clk 0:01:31]} 22. Qg4 {[%clk 0:01:26]}  Nhf6 {[%clk 0:01:23]} 23. Bxf6 {[%clk 0:01:24]}  Nxf6 {[%clk 0:01:24]} 24. Qxg6 {[%clk 0:01:22]}  dxe4 {[%clk 0:01:22]} 25. dxe4 {[%clk 0:01:19]}  Bxe4 {[%clk 0:01:08]} 26. Nxe4 {[%clk 0:01:16]}  Qxe4 {[%clk 0:01:09]} 27. Rxf6 {[%clk 0:00:49]}  Qd4+ {[%clk 0:01:03]} 28. Rf2 {[%clk 0:00:48]}  Qxb2 {[%clk 0:01:03]} 29. g3 {[%clk 0:00:42]}  Qa1+ {[%clk 0:01:02]} 30. Kg2 {[%clk 0:00:42]}  Qxa4 {[%clk 0:01:00]} 31. Qf7+ {[%clk 0:00:40]}  Kh7 {[%clk 0:00:58]} 32. Qf5+ {[%clk 0:00:37]}  Kg8 {[%clk 0:00:57]} 33. Rf4 {[%clk 0:00:36]}  Qc6+ {[%clk 0:00:55]} 34. Kh3 {[%clk 0:00:34]}  Qd6 {[%clk 0:00:20]} 35. Qf7+ {[%clk 0:00:32]}  Kh7 {[%clk 0:00:16]} 36. Rh4+ {[%clk 0:00:32]} 1-0

[Event "January 2 Early 2024"]
[Site "https://www.chess.com"]
[Date "2024.01.02"]
[Round "10"]
[White "Szente Varga, Fruzsina"]
[Black "Morales Garcia, Sergio Joshafatt"]
[Result "1/2-1/2"]
[Board "126"]
[TimeControl "180+1"]
[WhiteFideId "712264"]
[BlackFideId "5106249"]
[WhiteElo "2295"]
[BlackElo "2431"]
[WhiteTeam "HUN"]
[BlackTeam "MEX"]
[WhiteClock "0:01:37"]
[BlackClock "0:00:07"]

1. e4 {[%clk 0:03:00]}  c5 {[%clk 0:02:59]} 2. Nf3 {[%clk 0:02:58]}  e6 {[%clk 0:02:59]} 3. b3 {[%clk 0:02:58]}  Nc6 {[%clk 0:02:58]} 4. Bb2 {[%clk 0:02:57]}  a6 {[%clk 0:02:55]} 5. g3 {[%clk 0:02:56]}  d5 {[%clk 0:02:49]} 6. exd5 {[%clk 0:02:51]}  exd5 {[%clk 0:02:49]} 7. Qe2+ {[%clk 0:02:52]}  Be6 {[%clk 0:02:40]} 8. Bh3 {[%clk 0:02:43]}  Nf6 {[%clk 0:02:14]} 9. Bxe6 {[%clk 0:02:39]}  fxe6 {[%clk 0:02:14]} 10. Qxe6+ {[%clk 0:02:40]}  Qe7 {[%clk 0:02:14]} 11. Qxe7+ {[%clk 0:02:38]}  Bxe7 {[%clk 0:02:13]} 12. O-O {[%clk 0:02:38]}  O-O {[%clk 0:02:10]} 13. d3 {[%clk 0:02:35]}  Nb4 {[%clk 0:02:02]} 14. Na3 {[%clk 0:02:35]}  Ng4 {[%clk 0:01:42]} 15. Kg2 {[%clk 0:02:31]}  Rf7 {[%clk 0:01:35]} 16. Ne5 {[%clk 0:02:28]}  Nxe5 {[%clk 0:01:30]} 17. Bxe5 {[%clk 0:02:29]}  b5 {[%clk 0:01:19]} 18. c4 {[%clk 0:02:26]}  Nxd3 {[%clk 0:01:10]} 19. f4 {[%clk 0:02:21]}  bxc4 {[%clk 0:00:48]} 20. bxc4 {[%clk 0:02:20]}  Nxe5 {[%clk 0:00:41]} 21. fxe5 {[%clk 0:02:20]}  d4 {[%clk 0:00:42]} 22. Rab1 {[%clk 0:02:10]}  Rxf1 {[%clk 0:00:38]} 23. Kxf1 {[%clk 0:02:10]}  Kf7 {[%clk 0:00:38]} 24. Rb6 {[%clk 0:02:05]}  Bg5 {[%clk 0:00:32]} 25. Ke2 {[%clk 0:02:05]}  Re8 {[%clk 0:00:24]} 26. Rxa6 {[%clk 0:02:03]}  Rxe5+ {[%clk 0:00:23]} 27. Kd1 {[%clk 0:02:01]}  Rf5 {[%clk 0:00:20]} 28. Nb5 {[%clk 0:01:58]}  Rf2 {[%clk 0:00:18]} 29. Nd6+ {[%clk 0:01:56]}  Ke7 {[%clk 0:00:16]} 30. Ne4 {[%clk 0:01:57]}  Rf5 {[%clk 0:00:10]} 31. Nxg5 {[%clk 0:01:54]}  Rxg5 {[%clk 0:00:11]} 32. a4 {[%clk 0:01:54]}  Rf5 {[%clk 0:00:10]} 33. a5 {[%clk 0:01:54]}  Rf2 {[%clk 0:00:09]} 34. Rc6 {[%clk 0:01:53]}  Rxh2 {[%clk 0:00:08]} 35. Rxc5 {[%clk 0:01:53]}  Ke6 {[%clk 0:00:08]} 36. Rd5 {[%clk 0:01:52]}  Ra2 {[%clk 0:00:09]} 37. g4 {[%clk 0:01:51]}  h6 {[%clk 0:00:08]} 38. Kc1 {[%clk 0:01:48]}  g6 {[%clk 0:00:08]} 39. Kb1 {[%clk 0:01:48]}  Ra4 {[%clk 0:00:08]} 40. Rc5 {[%clk 0:01:48]}  d3 {[%clk 0:00:07]} 41. Kc1 {[%clk 0:01:48]}  h5 {[%clk 0:00:06]} 42. gxh5 {[%clk 0:01:47]}  gxh5 {[%clk 0:00:07]} 43. Kd2 {[%clk 0:01:48]}  Ra3 {[%clk 0:00:06]} 44. Rxh5 {[%clk 0:01:47]}  Kd6 {[%clk 0:00:06]} 45. Rd5+ {[%clk 0:01:47]}  Kc6 {[%clk 0:00:06]} 46. Rxd3 {[%clk 0:01:47]}  Rxa5 {[%clk 0:00:05]} 47. Rh3 {[%clk 0:01:40]}  Ra2+ {[%clk 0:00:05]} 48. Kc1 {[%clk 0:01:38]}  Ra4 {[%clk 0:00:06]} 49. Rh4 {[%clk 0:01:38]}  Kc5 {[%clk 0:00:06]} 50. Kd2 {[%clk 0:01:37]}  Rxc4 {[%clk 0:00:06]} 51. Rxc4+ {[%clk 0:01:37]}  Kxc4 {[%clk 0:00:07]} 1/2-1/2

[Event "January 2 Early 2024"]
[Site "https://www.chess.com"]
[Date "2024.01.02"]
[Round "10"]
[White "Rose, Felix"]
[Black "Carre, Sylvain"]
[Result "1-0"]
[Board "127"]
[TimeControl "180+1"]
[WhiteFideId "5105722"]
[BlackFideId "642118"]
[WhiteElo "2217"]
[BlackElo "2417"]
[WhiteTeam "MEX"]
[BlackTeam "FRA"]
[WhiteClock "0:00:44"]
[BlackClock "0:01:08"]

1. e4 {[%clk 0:03:00]}  g6 {[%clk 0:02:59]} 2. d4 {[%clk 0:02:59]}  d5 {[%clk 0:02:59]} 3. exd5 {[%clk 0:02:55]}  Qxd5 {[%clk 0:02:59]} 4. Nc3 {[%clk 0:02:55]}  Qd8 {[%clk 0:03:00]} 5. Bf4 {[%clk 0:02:54]}  Bg7 {[%clk 0:03:00]} 6. Qd2 {[%clk 0:02:54]}  Nf6 {[%clk 0:02:59]} 7. O-O-O {[%clk 0:02:54]}  c6 {[%clk 0:02:58]} 8. Bh6 {[%clk 0:02:51]}  Kf8 {[%clk 0:02:52]} 9. h4 {[%clk 0:02:44]}  Bf5 {[%clk 0:02:38]} 10. f3 {[%clk 0:02:07]}  Ng8 {[%clk 0:02:34]} 11. Bxg7+ {[%clk 0:02:07]}  Kxg7 {[%clk 0:02:34]} 12. g4 {[%clk 0:02:07]}  Be6 {[%clk 0:02:33]} 13. h5 {[%clk 0:02:05]}  Nd7 {[%clk 0:02:27]} 14. h6+ {[%clk 0:01:57]}  Kf8 {[%clk 0:02:26]} 15. d5 {[%clk 0:01:42]}  cxd5 {[%clk 0:02:26]} 16. Nxd5 {[%clk 0:01:41]}  Ngf6 {[%clk 0:02:25]} 17. Nxf6 {[%clk 0:01:33]}  exf6 {[%clk 0:02:25]} 18. Bb5 {[%clk 0:01:26]}  Ke8 {[%clk 0:02:06]} 19. Nh3 {[%clk 0:01:25]}  Rc8 {[%clk 0:02:02]} 20. Nf4 {[%clk 0:01:19]}  Rc7 {[%clk 0:02:03]} 21. Rhe1 {[%clk 0:01:17]}  a6 {[%clk 0:01:57]} 22. Rxe6+ {[%clk 0:01:07]}  fxe6 {[%clk 0:01:53]} 23. Nxe6 {[%clk 0:01:07]}  axb5 {[%clk 0:01:53]} 24. Nxd8 {[%clk 0:01:05]}  Kxd8 {[%clk 0:01:54]} 25. Qd6 {[%clk 0:01:03]}  Re8 {[%clk 0:01:51]} 26. Qxf6+ {[%clk 0:01:01]}  Kc8 {[%clk 0:01:52]} 27. Qf7 {[%clk 0:01:00]}  Rd8 {[%clk 0:01:31]} 28. Qxh7 {[%clk 0:00:56]}  Rc6 {[%clk 0:01:26]} 29. Qg7 {[%clk 0:00:53]}  Nc5 {[%clk 0:01:07]} 30. Rxd8+ {[%clk 0:00:49]}  Kxd8 {[%clk 0:01:08]} 31. h7 {[%clk 0:00:46]}  Nd3+ {[%clk 0:01:08]} 32. Kd2 {[%clk 0:00:44]} 1-0

[Event "January 2 Early 2024"]
[Site "https://www.chess.com"]
[Date "2024.01.02"]
[Round "10"]
[White "Topalov, Aleksandar"]
[Black "th3d4rkness"]
[Result "1-0"]
[Board "130"]
[TimeControl "180+1"]
[WhiteFideId "925659"]
[WhiteElo "2403"]
[BlackElo "2157"]
[WhiteTeam "SRB"]
[WhiteClock "0:02:10"]
[BlackClock "0:00:58"]

1. b3 {[%clk 0:02:57]}  e5 {[%clk 0:02:57]} 2. Bb2 {[%clk 0:02:57]}  Nc6 {[%clk 0:02:57]} 3. e3 {[%clk 0:02:55]}  Nf6 {[%clk 0:02:57]} 4. Bb5 {[%clk 0:02:55]}  Bd6 {[%clk 0:02:58]} 5. Na3 {[%clk 0:02:55]}  a6 {[%clk 0:02:57]} 6. Bxc6 {[%clk 0:02:54]}  dxc6 {[%clk 0:02:58]} 7. Nc4 {[%clk 0:02:55]}  Qe7 {[%clk 0:02:58]} 8. Ne2 {[%clk 0:02:55]}  O-O {[%clk 0:02:56]} 9. O-O {[%clk 0:02:55]}  b5 {[%clk 0:02:43]} 10. Nxd6 {[%clk 0:02:54]}  cxd6 {[%clk 0:02:43]} 11. Ng3 {[%clk 0:02:55]}  Bg4 {[%clk 0:02:37]} 12. f3 {[%clk 0:02:54]}  Be6 {[%clk 0:02:35]} 13. f4 {[%clk 0:02:54]}  Bg4 {[%clk 0:02:32]} 14. fxe5 {[%clk 0:02:45]}  Bxd1 {[%clk 0:02:29]} 15. exf6 {[%clk 0:02:44]}  gxf6 {[%clk 0:02:15]} 16. Raxd1 {[%clk 0:02:33]}  d5 {[%clk 0:01:45]} 17. Bxf6 {[%clk 0:02:31]}  Qd7 {[%clk 0:01:39]} 18. Rf5 {[%clk 0:02:25]}  h6 {[%clk 0:01:33]} 19. Rdf1 {[%clk 0:02:17]}  Rae8 {[%clk 0:01:26]} 20. Rh5 {[%clk 0:02:13]}  Kh7 {[%clk 0:01:19]} 21. Nf5 {[%clk 0:02:10]}  Rh8 {[%clk 0:00:58]} 22. Rxh6+ {[%clk 0:02:10]} 1-0

[Event "January 2 Early 2024"]
[Site "https://www.chess.com"]
[Date "2024.01.02"]
[Round "10"]
[White "Omariev, Maksim"]
[Black "Minina, Veronika"]
[Result "1-0"]
[Board "135"]
[TimeControl "180+1"]
[WhiteFideId "4193423"]
[BlackFideId "4174780"]
[WhiteElo "2399"]
[BlackElo "2280"]
[WhiteTeam "RUS"]
[BlackTeam "RUS"]
[WhiteClock "0:00:54"]
[BlackClock "0:00:00"]

1. g4 {[%clk 0:02:52]}  d5 {[%clk 0:03:00]} 2. Bg2 {[%clk 0:02:47]}  c6 {[%clk 0:03:00]} 3. h3 {[%clk 0:02:47]}  e5 {[%clk 0:02:53]} 4. d4 {[%clk 0:02:47]}  e4 {[%clk 0:02:52]} 5. c4 {[%clk 0:02:47]}  Be6 {[%clk 0:02:45]} 6. Nc3 {[%clk 0:02:47]}  Qd7 {[%clk 0:02:40]} 7. Bf4 {[%clk 0:02:44]}  h5 {[%clk 0:02:31]} 8. g5 {[%clk 0:02:44]}  Ne7 {[%clk 0:02:27]} 9. e3 {[%clk 0:02:41]}  Ng6 {[%clk 0:02:22]} 10. Bg3 {[%clk 0:02:26]}  h4 {[%clk 0:02:22]} 11. Bh2 {[%clk 0:02:26]}  Be7 {[%clk 0:02:18]} 12. f4 {[%clk 0:01:46]}  exf3 {[%clk 0:02:16]} 13. Nxf3 {[%clk 0:01:47]}  dxc4 {[%clk 0:01:43]} 14. Qe2 {[%clk 0:01:39]}  Bxh3 {[%clk 0:01:36]} 15. Bxh3 {[%clk 0:01:38]}  Qxh3 {[%clk 0:01:34]} 16. O-O-O {[%clk 0:01:39]}  Qf5 {[%clk 0:01:14]} 17. e4 {[%clk 0:01:32]}  Bxg5+ {[%clk 0:01:08]} 18. Kb1 {[%clk 0:01:31]}  Qf6 {[%clk 0:01:03]} 19. e5 {[%clk 0:01:20]}  Qe7 {[%clk 0:00:47]} 20. Nxg5 {[%clk 0:01:18]}  Qxg5 {[%clk 0:00:46]} 21. Ne4 {[%clk 0:01:19]}  Qe7 {[%clk 0:00:27]} 22. Nd6+ {[%clk 0:01:19]}  Kd8 {[%clk 0:00:16]} 23. Qxc4 {[%clk 0:01:17]}  Rf8 {[%clk 0:00:17]} 24. Rhf1 {[%clk 0:01:17]}  Nh8 {[%clk 0:00:15]} 25. d5 {[%clk 0:01:09]}  c5 {[%clk 0:00:09]} 26. Qxc5 {[%clk 0:01:06]}  Na6 {[%clk 0:00:09]} 27. Nxb7+ {[%clk 0:01:03]}  Qxb7 {[%clk 0:00:05]} 28. Qxf8+ {[%clk 0:01:04]}  Kc7 {[%clk 0:00:04]} 29. Qd6+ {[%clk 0:00:56]}  Kc8 {[%clk 0:00:04]} 30. Rc1+ {[%clk 0:00:57]}  Nc7 {[%clk 0:00:00]} 31. e6 {[%clk 0:00:54]} 1-0

[Event "January 2 Early 2024"]
[Site "https://www.chess.com"]
[Date "2024.01.02"]
[Round "10"]
[White "Player, Edmund C"]
[Black "Paragua, Megan Althea"]
[Result "0-1"]
[Board "137"]
[TimeControl "180+1"]
[WhiteFideId "406520"]
[BlackFideId "30973007"]
[WhiteElo "2277"]
[BlackElo "2360"]
[WhiteTeam "ENG"]
[BlackTeam "USA"]
[WhiteClock "0:00:09"]
[BlackClock "0:00:32"]

1. e4 {[%clk 0:03:00]}  c5 {[%clk 0:02:59]} 2. Nf3 {[%clk 0:02:56]}  Nf6 {[%clk 0:02:55]} 3. e5 {[%clk 0:02:53]}  Nd5 {[%clk 0:02:51]} 4. c4 {[%clk 0:02:44]}  Nc7 {[%clk 0:02:48]} 5. Nc3 {[%clk 0:02:40]}  Nc6 {[%clk 0:02:45]} 6. d3 {[%clk 0:02:38]}  g6 {[%clk 0:02:44]} 7. Ne4 {[%clk 0:02:20]}  Ne6 {[%clk 0:02:35]} 8. Be3 {[%clk 0:01:48]}  Bg7 {[%clk 0:02:27]} 9. Qd2 {[%clk 0:01:40]}  b6 {[%clk 0:02:24]} 10. Bh6 {[%clk 0:01:27]}  O-O {[%clk 0:01:57]} 11. Bxg7 {[%clk 0:01:23]}  Kxg7 {[%clk 0:01:55]} 12. h4 {[%clk 0:01:21]}  h5 {[%clk 0:01:47]} 13. Neg5 {[%clk 0:01:19]}  Qc7 {[%clk 0:01:38]} 14. Nxe6+ {[%clk 0:01:01]}  dxe6 {[%clk 0:01:36]} 15. g4 {[%clk 0:00:22]}  hxg4 {[%clk 0:01:14]} 16. h5 {[%clk 0:00:21]}  Rh8 {[%clk 0:01:13]} 17. h6+ {[%clk 0:00:20]}  Kg8 {[%clk 0:01:10]} 18. Ng5 {[%clk 0:00:17]}  Qxe5+ {[%clk 0:01:08]} 19. Kd1 {[%clk 0:00:13]}  Nd4 {[%clk 0:01:06]} 20. Bg2 {[%clk 0:00:11]}  Rb8 {[%clk 0:01:00]} 21. b4 {[%clk 0:00:08]}  Nf3 {[%clk 0:00:57]} 22. Bxf3 {[%clk 0:00:08]}  Qxa1+ {[%clk 0:00:56]} 23. Kc2 {[%clk 0:00:08]}  Qxa2+ {[%clk 0:00:53]} 24. Kc1 {[%clk 0:00:08]}  Qxd2+ {[%clk 0:00:52]} 25. Kxd2 {[%clk 0:00:09]}  gxf3 {[%clk 0:00:52]} 26. h7+ {[%clk 0:00:08]}  Kg7 {[%clk 0:00:52]} 27. Ke3 {[%clk 0:00:08]}  f6 {[%clk 0:00:53]} 28. Ne4 {[%clk 0:00:07]}  Rxh7 {[%clk 0:00:51]} 29. Ra1 {[%clk 0:00:07]}  a6 {[%clk 0:00:47]} 30. bxc5 {[%clk 0:00:07]}  bxc5 {[%clk 0:00:46]} 31. Nxc5 {[%clk 0:00:07]}  Rb6 {[%clk 0:00:45]} 32. Kxf3 {[%clk 0:00:07]}  Rh5 {[%clk 0:00:39]} 33. Ne4 {[%clk 0:00:08]}  Bb7 {[%clk 0:00:39]} 34. c5 {[%clk 0:00:08]}  Rxc5 {[%clk 0:00:37]} 35. Ke3 {[%clk 0:00:08]}  Bxe4 {[%clk 0:00:37]} 36. d4 {[%clk 0:00:08]}  Rcb5 {[%clk 0:00:35]} 37. Kxe4 {[%clk 0:00:09]}  a5 {[%clk 0:00:36]} 38. f4 {[%clk 0:00:08]}  f5+ {[%clk 0:00:35]} 39. Kd3 {[%clk 0:00:08]}  Rb3+ {[%clk 0:00:35]} 40. Kc4 {[%clk 0:00:09]}  R6b4+ {[%clk 0:00:33]} 41. Kc5 {[%clk 0:00:09]}  Rc3# {[%clk 0:00:32]} 0-1

[Event "January 2 Early 2024"]
[Site "https://www.chess.com"]
[Date "2024.01.02"]
[Round "10"]
[White "Kohler, Aran"]
[Black "Tuleyeva-Aketayeva, Dana"]
[Result "1-0"]
[Board "141"]
[TimeControl "180+1"]
[WhiteFideId "1002856"]
[BlackFideId "13701932"]
[WhiteElo "2223"]
[BlackElo "2331"]
[WhiteTeam "NED"]
[BlackTeam "KAZ"]
[WhiteClock "0:00:44"]
[BlackClock "0:00:08"]

1. d4 {[%clk 0:03:00]}  Nf6 {[%clk 0:02:59]} 2. Nf3 {[%clk 0:02:59]}  e6 {[%clk 0:02:59]} 3. Bg5 {[%clk 0:03:00]}  Be7 {[%clk 0:02:59]} 4. Nbd2 {[%clk 0:02:59]}  O-O {[%clk 0:02:58]} 5. e3 {[%clk 0:02:59]}  b6 {[%clk 0:02:59]} 6. Bd3 {[%clk 0:02:59]}  Ba6 {[%clk 0:02:59]} 7. c4 {[%clk 0:02:58]}  d5 {[%clk 0:02:58]} 8. b3 {[%clk 0:02:57]}  Nbd7 {[%clk 0:02:43]} 9. h4 {[%clk 0:02:58]}  c5 {[%clk 0:02:43]} 10. Ne5 {[%clk 0:02:55]}  Nxe5 {[%clk 0:02:14]} 11. dxe5 {[%clk 0:02:54]}  Nd7 {[%clk 0:02:14]} 12. f4 {[%clk 0:02:53]}  dxc4 {[%clk 0:02:10]} 13. Nxc4 {[%clk 0:02:50]}  Bxc4 {[%clk 0:02:09]} 14. bxc4 {[%clk 0:02:47]}  Rb8 {[%clk 0:01:50]} 15. Qh5 {[%clk 0:02:39]}  g6 {[%clk 0:01:45]} 16. Qe2 {[%clk 0:02:38]}  f6 {[%clk 0:01:40]} 17. Bh6 {[%clk 0:02:35]}  Re8 {[%clk 0:01:36]} 18. h5 {[%clk 0:02:34]}  f5 {[%clk 0:01:30]} 19. hxg6 {[%clk 0:02:33]}  hxg6 {[%clk 0:01:29]} 20. O-O-O {[%clk 0:02:33]}  b5 {[%clk 0:01:27]} 21. g4 {[%clk 0:02:33]}  Qa5 {[%clk 0:01:16]} 22. cxb5 {[%clk 0:02:21]}  c4 {[%clk 0:01:07]} 23. Bxc4 {[%clk 0:02:00]}  Ba3+ {[%clk 0:00:52]} 24. Kb1 {[%clk 0:01:51]}  Qb4+ {[%clk 0:00:46]} 25. Ka1 {[%clk 0:01:50]}  Nb6 {[%clk 0:00:46]} 26. Bb3 {[%clk 0:01:35]}  Na4 {[%clk 0:00:38]} 27. Qc4 {[%clk 0:01:02]}  Qxc4 {[%clk 0:00:16]} 28. Bxc4 {[%clk 0:01:01]}  Rbc8 {[%clk 0:00:16]} 29. Bg7 {[%clk 0:00:47]}  Rxc4 {[%clk 0:00:13]} 30. Rd7 {[%clk 0:00:46]}  Bb2+ {[%clk 0:00:12]} 31. Kb1 {[%clk 0:00:46]}  Rec8 {[%clk 0:00:08]} 32. Rh8# {[%clk 0:00:44]} 1-0

[Event "January 2 Early 2024"]
[Site "https://www.chess.com"]
[Date "2024.01.02"]
[Round "10"]
[White "Gottstein, Claudius-Thomas"]
[Black "Poddubnyi, Viktor"]
[Result "0-1"]
[Board "142"]
[TimeControl "180+1"]
[WhiteFideId "4653327"]
[BlackFideId "4141989"]
[WhiteElo "2220"]
[BlackElo "2325"]
[WhiteTeam "GER"]
[BlackTeam "RUS"]
[WhiteClock "0:01:22"]
[BlackClock "0:00:29"]

1. Nf3 {[%clk 0:03:00]}  g6 {[%clk 0:02:54]} 2. c4 {[%clk 0:03:00]}  Bg7 {[%clk 0:02:54]} 3. Nc3 {[%clk 0:03:00]}  c5 {[%clk 0:02:52]} 4. g3 {[%clk 0:03:00]}  Nf6 {[%clk 0:02:52]} 5. Bg2 {[%clk 0:03:00]}  O-O {[%clk 0:02:52]} 6. O-O {[%clk 0:03:01]}  Nc6 {[%clk 0:02:52]} 7. d4 {[%clk 0:03:00]}  cxd4 {[%clk 0:02:52]} 8. Nxd4 {[%clk 0:03:01]}  Ng4 {[%clk 0:02:51]} 9. Nxc6 {[%clk 0:02:48]}  bxc6 {[%clk 0:02:51]} 10. Qc2 {[%clk 0:02:44]}  Rb8 {[%clk 0:02:45]} 11. b3 {[%clk 0:02:44]}  d5 {[%clk 0:02:36]} 12. Rd1 {[%clk 0:02:38]}  e6 {[%clk 0:02:34]} 13. h3 {[%clk 0:02:22]}  Nxf2 {[%clk 0:02:13]} 14. Kxf2 {[%clk 0:02:20]}  Qf6+ {[%clk 0:02:13]} 15. Kg1 {[%clk 0:02:14]}  Qxc3 {[%clk 0:02:12]} 16. Qxc3 {[%clk 0:02:08]}  Bxc3 {[%clk 0:02:13]} 17. Rb1 {[%clk 0:02:07]}  Ba6 {[%clk 0:02:13]} 18. cxd5 {[%clk 0:02:00]}  Bxe2 {[%clk 0:02:03]} 19. Ba3 {[%clk 0:01:57]}  Bxd1 {[%clk 0:01:52]} 20. Bxf8 {[%clk 0:01:56]}  Kxf8 {[%clk 0:01:10]} 21. Rxd1 {[%clk 0:01:53]}  cxd5 {[%clk 0:01:08]} 22. Rd3 {[%clk 0:01:51]}  Be5 {[%clk 0:01:03]} 23. g4 {[%clk 0:01:43]}  Rc8 {[%clk 0:01:02]} 24. Rd2 {[%clk 0:01:40]}  Rc3 {[%clk 0:00:52]} 25. Kf2 {[%clk 0:01:38]}  Ke7 {[%clk 0:00:42]} 26. Bf3 {[%clk 0:01:36]}  Kd6 {[%clk 0:00:39]} 27. Kg2 {[%clk 0:01:35]}  Bf4 {[%clk 0:00:38]} 28. Rb2 {[%clk 0:01:30]}  d4 {[%clk 0:00:37]} 29. Be4 {[%clk 0:01:29]}  f5 {[%clk 0:00:34]} 30. gxf5 {[%clk 0:01:28]}  gxf5 {[%clk 0:00:35]} 31. Bf3 {[%clk 0:01:25]}  e5 {[%clk 0:00:33]} 32. Re2 {[%clk 0:01:24]}  e4 {[%clk 0:00:31]} 33. Bh5 {[%clk 0:01:22]}  d3 {[%clk 0:00:29]} 0-1